fUSD/lending_fUSD_20251231
["ID","MTS","AMOUNT","RATE_DAILY","PERIOD"]
[400235431,1767209647245,-262.12448964,0.00010899,2]
[400235432,1767209650191,-187.80115239,0.00010899,2]
[400235433,1767209653899,-180.42847508,0.00010899,2]
[400235434,1767209655423,-181.65421159,0.00010899,2]
[400235435,1767209658565,-238.65802363,0.00010899,2]
[400235436,1767209662227,-276.0742652,0.00010899,2]
[400235437,1767209665552,-164.56099883,0.00010899,2]
[400235438,1767209666983,-272.03717637,0.00010899,2]
[400235439,1767209667386,440.63526403,0.00010799,2]
[400235440,1767209670393,-159.15,0.00010899,2]
[400235441,1767209672356,-259.76372749,0.00010899,2]
[400235442,1767209673715,605.35328725,0.00010898,2]
[400235443,1767209673785,208.56564488,0.00010898,2]
[400235444,1767209674801,500.0,0.00010898,2]
[400235445,1767209674854,500.0,0.00010898,2]
[400235446,1767209674906,500.0,0.00010898,2]
[400235447,1767209674958,500.0,0.00010898,2]
[400235448,1767209675010,500.0,0.00010898,2]
[400235449,1767209675061,500.0,0.00010898,2]
[400235450,1767209675119,500.0,0.00010898,2]
[400235451,1767209675171,500.0,0.00010898,2]
[400235452,1767209675225,500.0,0.00010898,2]
[400235453,1767209675658,500.0,0.00010898,2]
[400235454,1767209675711,500.0,0.00010898,2]
[400235455,1767209675764,500.0,0.00010898,2]
[400235456,1767209675824,500.0,0.00010898,2]
[400235457,1767209675879,500.0,0.00010898,2]
[400235458,1767209675924,500.0,0.00010898,2]
[400235459,1767209675972,500.0,0.00010898,2]
[400235460,1767209676017,500.0,0.00010898,2]
[400235461,1767209676067,94.0318268,0.00010898,2]
[400235462,1767209676096,405.9681732,0.00010898,2]
[400235463,1767209676143,500.0,0.00010898,2]
[400235464,1767209676189,500.0,0.00010898,2]
[400235465,1767209676230,500.0,0.00010898,2]
[400235466,1767209676276,444.68613973,0.00010898,2]
[400235467,1767209676328,500.0,0.00010898,2]
[400235468,1767209676385,500.0,0.00010898,2]
[400235469,1767209676422,-160.75987812,0.00010899,2]
[400235470,1767209678481,-331.84953778,0.00010899,2]
[400235471,1767209680647,-163.83925901,0.00010899,2]
[400235472,1767209683272,-168.15046222,0.00010899,2]
[400235473,1767209685564,-175.40086287,0.00010899,2]
[400235474,1767209687090,-435.80607334,0.00010899,2]
[400235475,1767209689732,-368.94471209,0.00010899,2]
[400235476,1767209692296,-159.42475886,0.00010899,2]
[400235477,1767209694384,-249.40125545,0.00010899,2]
[400235478,1767209696496,-238.49100905,0.00010899,2]
[400235479,1767209698020,-163.83100343,0.00010899,2]
[400235480,1767209699600,-261.43882514,0.00010899,2]
[400235481,1767209701187,300.0,0.00010898,2]
[400235482,1767209702274,-281.49733174,0.00010899,2]
[400235483,1767209704990,-259.76001502,0.00010899,2]
[400235484,1767209706538,-196.45595785,0.00010899,2]
[400235485,1767209711123,-163.77126412,0.00010899,2]
[400235486,1767209712670,-195.57434488,0.00010899,2]
[400235487,1767209714096,-309.00967224,0.00010899,2]
[400235488,1767209717305,-300.86586413,0.00010899,2]
[400235489,1767209721676,-217.94258592,0.00010899,2]
[400235490,1767209723768,-200.0,0.00010899,2]
[400235491,1767209725571,500.0,0.00010898,2]
[400235492,1767209725612,500.0,0.00010898,2]
[400235493,1767209725671,500.0,0.00010898,2]
[400235494,1767209725707,-186.96273635,0.00010899,2]
[400235495,1767209725745,500.0,0.00010898,2]
[400235496,1767209725783,500.0,0.00010898,2]
[400235497,1767209725831,384.91724221,0.00010898,2]
[400235498,1767209729286,-300.0,0.00010899,2]
[400235499,1767209730809,-168.97095005,0.00010899,2]
[400235500,1767209732891,-334.67187531,0.00010899,2]
[400235501,1767209734287,151.0,0.00043213,50]
[400235502,1767209734370,151.0,0.00043213,50]
[400235503,1767209734776,151.0,0.00043213,50]
[400235504,1767209735407,151.0,0.00043213,50]
[400235505,1767209735710,151.0,0.00043213,50]
[400235506,1767209736001,151.0,0.00043213,50]
[400235507,1767209736301,151.0,0.00043213,50]
[400235508,1767209736580,151.0,0.00043213,50]
[400235509,1767209736862,151.0,0.00043213,50]
[400235510,1767209737154,176.602108,0.00043213,50]
[400235511,1767209737626,-170.90443543,0.00010899,2]
[400235512,1767209739015,-500.0,0.00010899,2]
[400235513,1767209742776,-163.03828711,0.00010899,2]
[400235514,1767209746042,-179.79888882,0.00010899,2]
[400235515,1767209747323,151.42397703,0.00010799,2]
[400235516,1767209747586,-203.84285119,0.00010899,2]
[400235517,1767209752095,-158.09533392,0.00010899,2]
[400235518,1767209754104,-220.1102719,0.00010899,2]
[400235519,1767209755762,-300.0,0.00010899,2]
[400235520,1767209759512,-309.42347245,0.00010899,2]
[400235521,1767209763981,-244.70273456,0.00010899,2]
[400235522,1767209764191,500.0,0.00043213,120]
[400235523,1767209766435,-176.37125816,0.00010899,2]
[400235524,1767209767848,-160.34407081,0.00010899,2]
[400235525,1767209770409,-333.82944524,0.00010899,2]
[400235526,1767209773933,-203.46735316,0.00010899,2]
[400235527,1767209775956,-151.69,0.00010899,2]
[400235528,1767209778057,-403.19873588,0.00010899,2]
[400235529,1767209780795,-623.83200972,0.00010899,2]
[400235530,1767209783982,-265.8596607,0.00010899,2]
[400235531,1767209786001,-476.43839649,0.00010899,2]
[400235532,1767209790217,-189.4833,0.00010899,2]
[400235533,1767209791697,-574.09988407,0.00010899,2]
[400235534,1767209793218,-170.11856859,0.00010899,2]
[400235535,1767209795131,-345.10626585,0.00010899,2]
[400235536,1767209797712,-156.79467377,0.00010899,2]
[400235537,1767209799312,-736.81351975,0.00010899,2]
[400235538,1767209802384,-166.66,0.00010899,2]
[400235539,1767209803909,-224.46039288,0.00010899,2]
[400235540,1767209805937,-182.45496372,0.00010899,2]
[400235541,1767209807478,-256.55012162,0.00010899,2]
[400235542,1767209809035,-341.28047828,0.00010899,2]
[400235543,1767209813534,-219.15242765,0.00010899,2]
[400235544,1767209819577,-376.66334882,0.00010899,2]
[400235545,1767209821561,-500.0,0.00010899,2]
[400235546,1767209825126,-204.14778118,0.00010899,2]
[400235547,1767209829540,-244.89063938,0.00010899,2]
[400235548,1767209830933,-152.86532469,0.00010899,2]
[400235549,1767209832872,-267.14074315,0.00010899,2]
[400235550,1767209834322,-232.85925685,0.00010899,2]
[400235551,1767209837583,-340.96474375,0.00010899,2]
[400235552,1767209841878,-368.8268384,0.00010899,2]
[400235553,1767209845516,-256.79390013,0.00010899,2]
[400235554,1767209848547,-159.03525625,0.00010899,2]
[400235555,1767209874103,594.2092946,0.00010799,2]
[400235556,1767209881982,300.0,0.00010898,2]
[400235557,1767209915468,775.7149,0.00010799,2]
[400235558,1767209952801,881.27052806,0.00010799,2]
[400235559,1767209960410,500.0,0.00010898,2]
[400235560,1767209960459,500.0,0.00010898,2]
[400235561,1767209960517,500.0,0.00010898,2]
[400235562,1767209960571,500.0,0.00010898,2]
[400235563,1767209960618,500.0,0.00010898,2]
[400235564,1767209960680,214.90449276,0.00010898,2]
[400235565,1767209980174,423.74730108,0.00010898,2]
[400235566,1767209982168,4158.73950647,0.00010889,2]
[400235567,1767209982192,9081.56962429,0.00010889,2]
[400235568,1767210000467,256.79390013,0.00010898,2]
[400235569,1767210001199,661.64647558,0.00010898,2]
[400235570,1767210001223,538.35352442,0.00010898,2]
[400235571,1767210001266,300.0,0.00010898,2]
[400235572,1767210003246,239.0,0.00010898,2]
[400235573,1767210061176,500.0,0.0004321,120]
[400235574,1767210065331,178.41,0.00010799,2]
[400235575,1767210093943,2486.33,0.00010681,2]
[400235576,1767210094093,172.477,0.00010681,2]
[400235577,1767210121419,300.0,0.00010898,2]
[400235578,1767210121518,300.0,0.00010898,2]
[400235579,1767210181255,300.0,0.00010898,2]
[400235580,1767210257525,2036.5426,0.00010799,2]
[400235581,1767210285917,-10000.0,0.00010899,2]
[400235582,1767210301134,300.0,0.00010898,2]
[400235584,1767210352066,2848.89687558,0.00010799,2]
[400235585,1767210352090,1255.22702442,0.00010799,2]
[400235586,1767210358601,169.8906,0.00010799,2]
[400235587,1767210361134,500.0,0.00043215,120]
[400235588,1767210361272,300.0,0.00010898,2]
[400235589,1767210370443,2500.0,0.00010799,2]
[400235590,1767210421895,300.0,0.00010898,2]
[400235597,1767210480876,360.5238,0.00010799,2]
[400235598,1767210481304,300.0,0.00010898,2]
[400235599,1767210499220,1038.2854,0.00010799,2]
[400235600,1767210541272,300.0,0.00010898,2]
[400235621,1767210552320,1000.0,0.00010898,2]
[400235628,1767210568183,519.47955497,0.00010799,2]
[400235629,1767210609033,1956.60362061,0.00010799,2]
[400235630,1767210609066,10000.01,0.00010799,2]
[400235631,1767210609097,10000.01,0.00010799,2]
[400235632,1767210609128,10000.01,0.00010799,2]
[400235633,1767210609158,10000.01,0.00010799,2]
[400235634,1767210609187,10000.01,0.00010799,2]
[400235635,1767210609219,10000.01,0.00010799,2]
[400235636,1767210609248,10000.01,0.00010799,2]
[400235637,1767210609277,10000.01,0.00010799,2]
[400235638,1767210609306,10000.01,0.00010799,2]
[400235639,1767210610953,-170.85685956,0.00010799,2]
[400235640,1767210614178,-300.0,0.00010799,2]
[400235641,1767210616800,-159.44506256,0.00010799,2]
[400235642,1767210619435,-525.80483609,0.00010799,2]
[400235643,1767210623203,-287.91791476,0.00010799,2]
[400235644,1767210629329,-372.5459552,0.00010799,2]
[400235645,1767210631487,-192.50448682,0.00010799,2]
[400235648,1767210631989,-9488.89935868,0.00010799,2]
[400235649,1767210632045,-412.97282465,0.00010799,2]
[400235650,1767210632057,-727.65809693,0.00010799,2]
[400235651,1767210632097,-590.92687097,0.00010799,2]
[400235652,1767210632108,-687366.96669115,0.00010799,2]
[400235653,1767210632121,-10748.98178002,0.00010799,2]
[400235654,1767210632132,-68151.7998144,0.00010799,2]
[400235655,1767210632144,-75778.18774695,0.00010799,2]
[400235656,1767210632155,-1254.41808677,0.00010799,2]
[400235657,1767210632167,-906.0,0.00010799,2]
[400235692,1767210634071,-243.80804689,0.00010799,2]
[400235697,1767210638065,-1043.388026,0.00010799,2]
[400235698,1767210638079,-49320.22392099,0.00010799,2]
[400235699,1767210638089,-607.4475,0.00010799,2]
[400235700,1767210638099,-437.9983,0.00010899,2]
[400235701,1767210638110,-1000.0,0.00010899,2]
[400235702,1767210638121,-239.0,0.00010899,2]
[400235703,1767210638132,-250.0,0.00010924,2]
[400235704,1767210638142,-313.90547887,0.00011015,2]
[400235705,1767210638157,-225.49170008,0.00011031,2]
[400235706,1767210638167,-300.0,0.00011989,2]
[400235707,1767210638178,-250.0,0.00011989,2]
[400235708,1767210638188,-500.0,0.00013698,2]
[400235709,1767210638199,-500.0,0.00013698,2]
[400235710,1767210638209,-500.0,0.00013698,2]
[400235711,1767210638219,-500.0,0.00013698,2]
[400235712,1767210638232,-500.0,0.00013698,2]
[400235713,1767210638242,-500.0,0.00013698,2]
[400235714,1767210638252,-519.47955496,0.0001385,2]
[400235715,1767210638262,-169.15912979,0.00014093,2]
[400235716,1767210638274,-187.42,0.00014185,2]
[400235717,1767210638285,-2247.29,0.00014299,2]
[400235718,1767210638296,-252.28058532,0.00014569,2]
[400235719,1767210638307,-200.0,0.00014645,2]
[400235720,1767210638318,-207.4,0.00014645,2]
[400235721,1767210638328,-215.0738,0.00014645,2]
[400235723,1767210638338,-223.0315306,0.00014645,2]
[400235725,1767210638351,-231.28369723,0.00014645,2]
[400235727,1767210638360,-239.84119403,0.00014645,2]
[400235729,1767210638371,-248.71531821,0.00014645,2]
[400235731,1767210638381,-257.91778498,0.00014645,2]
[400235733,1767210638391,-287.61899177,0.00014645,2]
[400235735,1767210638402,-1000.0,0.00014654,2]
[400235737,1767210638412,-1403.0,0.00014794,2]
[400235739,1767210638421,-613.0,0.00014794,2]
[400235741,1767210638431,-3462.0,0.00014794,2]
[400235743,1767210638442,-1328.0,0.00014794,2]
[400235745,1767210638452,-1264.0,0.00014794,2]
[400235747,1767210638463,-432.0,0.00014794,2]
[400235749,1767210638473,-6542.0,0.00014794,2]
[400235751,1767210638483,-2433.0,0.00014794,2]
[400235753,1767210638493,-565.0,0.00014794,2]
[400235754,1767210638503,-150.0,0.00015014,2]
[400235755,1767210638518,-150.0,0.00015014,2]
[400235756,1767210638528,-150.0,0.00015014,2]
[400235757,1767210638538,-150.0,0.00015014,2]
[400235758,1767210638548,-150.0,0.00015014,2]
[400235759,1767210638558,-150.0,0.00015014,2]
[400235760,1767210638568,-150.0,0.00015014,2]
[400235761,1767210638578,-150.0,0.00015069,2]
[400235762,1767210638588,-150.0,0.00015069,2]
[400235763,1767210638598,-150.0,0.00015069,2]
[400235764,1767210638608,-150.0,0.00015069,2]
[400235765,1767210638618,-200.0,0.00015069,2]
[400235766,1767210638627,-200.0,0.00015104,2]
[400235767,1767210638637,-200.0,0.00015124,2]
[400235768,1767210638648,-200.0,0.00015124,2]
[400235769,1767210638658,-27.27461092,0.00015124,2]
[400235770,1767210638671,-206.98279015,0.00015124,2]
[400235771,1767210638681,-200.0,0.00015124,2]
[400235772,1767210638691,-346.26857968,0.00015242,2]
[400235773,1767210638703,-115.86142032,0.00015242,2]
[400235774,1767210638713,-150.0,0.00015288,2]
[400235775,1767210638723,-150.0,0.00015288,2]
[400235776,1767210638733,-31.80032455,0.00015441,2]
[400235784,1767210638911,-688.30896852,0.00015441,2]
[400235787,1767210638926,-865.42829817,0.00015441,2]
[400235789,1767210638938,-1654.46240876,0.00015441,2]
[400235791,1767210638949,-169.15912979,0.00015497,2]
[400235793,1767210638959,-831.0,0.0001572,2]
[400235795,1767210638969,-89.63412952,0.00015755,2]
[400235797,1767210638980,-62.20181955,0.00015755,2]
[400235799,1767210638990,-1000.0,0.000158,2]
[400235801,1767210638999,-151.0,0.00015922,2]
[400235803,1767210639009,-151.0,0.00015922,2]
[400235805,1767210639021,-500.0,0.00015973,2]
[400235807,1767210639031,-228.12,0.00015973,2]
[400235809,1767210639041,-500.0,0.00015973,2]
[400235811,1767210639051,-500.0,0.00015973,2]
[400235813,1767210639060,-500.0,0.00015973,2]
[400235815,1767210639070,-500.0,0.00015973,2]
[400235817,1767210639080,-253.27711762,0.00015973,2]
[400235819,1767210639089,-500.0,0.00015973,2]
[400235821,1767210639100,-500.0,0.00015973,2]
[400235823,1767210639110,-500.0,0.00015973,2]
[400235825,1767210639120,-500.0,0.00015973,2]
[400235828,1767210639130,-500.0,0.00015973,2]
[400235830,1767210639140,-500.0,0.00015973,2]
[400235832,1767210639150,-500.0,0.00015973,2]
[400235834,1767210639159,-500.0,0.00015973,2]
[400235836,1767210639169,-500.0,0.00015973,2]
[400235837,1767210639179,-500.0,0.00015973,2]
[400235840,1767210639189,-500.0,0.00015973,2]
[400235842,1767210639199,-500.0,0.00015973,2]
[400235844,1767210639209,-182.13783809,0.00015973,2]
[400235846,1767210639219,-295.1,0.00015973,2]
[400235848,1767210639231,-462.13,0.00016004,2]
[400235850,1767210639241,-831.0,0.0001604,2]
[400235852,1767210639251,-831.0,0.0001604,2]
[400235854,1767210639261,-151.0,0.0001607,2]
[400235856,1767210639271,-151.0,0.0001607,2]
[400235858,1767210639281,-151.0,0.00016087,2]
[400235860,1767210639291,-151.0,0.00016087,2]
[400235862,1767210639301,-782.43593654,0.00016116,2]
[400235864,1767210639314,-385.09999523,0.00016116,2]
[400235866,1767210639326,-478.8554117,0.00016116,2]
[400235869,1767210639338,-922.64,0.00016116,2]
[400235871,1767210639349,-1917.85865653,0.00016116,2]
[400235873,1767210639358,-295.1,0.00016247,2]
[400235875,1767210639368,-500.0,0.00016438,2]
[400235877,1767210639377,-500.0,0.00016438,2]
[400235879,1767210639387,-500.0,0.00016438,2]
[400235882,1767210639406,-412.77800768,0.00016438,2]
[400236105,1767210641617,-1.7e-07,0.00016438,2]
[400236107,1767210641629,-87.22199215,0.00016438,2]
[400236109,1767210641640,-500.0,0.00016438,2]
[400236111,1767210641649,-500.0,0.00016438,2]
[400236113,1767210641659,-500.0,0.00016438,2]
[400236115,1767210641668,-500.0,0.00016438,2]
[400236117,1767210641677,-500.0,0.00016438,2]
[400236119,1767210641687,-500.0,0.00016438,2]
[400236121,1767210641696,-500.0,0.00016438,2]
[400236123,1767210641706,-500.0,0.00016438,2]
[400236125,1767210641715,-500.0,0.00016438,2]
[400236127,1767210641725,-551.10163238,0.00016438,2]
[400236129,1767210641735,-500.0,0.00016438,2]
[400236131,1767210641745,-500.0,0.00016438,2]
[400236133,1767210641754,-500.0,0.00016438,2]
[400236135,1767210641764,-500.0,0.00016438,2]
[400236137,1767210641774,-500.0,0.00016438,2]
[400236139,1767210641783,-500.0,0.00016438,2]
[400236141,1767210641793,-500.0,0.00016438,2]
[400236143,1767210641803,-500.0,0.00016438,2]
[400236145,1767210641812,-500.0,0.00016438,2]
[400236147,1767210641822,-500.0,0.00016438,2]
[400236149,1767210641831,-500.0,0.00016438,2]
[400236151,1767210641841,-500.0,0.00016438,2]
[400236153,1767210641850,-500.0,0.00016438,2]
[400236155,1767210641860,-500.0,0.00016438,2]
[400236157,1767210641870,-500.0,0.00016438,2]
[400236160,1767210641884,-5894.8,0.00016438,2]
[400236162,1767210641893,-151.83594907,0.00016471,2]
[400236164,1767210641903,-342.06,0.00016482,2]
[400236166,1767210641912,-1000.0,0.00016486,2]
[400236168,1767210641922,-171.03,0.00016486,2]
[400236170,1767210641931,-171.03,0.00016486,2]
[400236172,1767210641941,-171.03,0.00016486,2]
[400236174,1767210641952,-1000.0,0.00016521,2]
[400236176,1767210641962,-1000.0,0.00016521,2]
[400236178,1767210641971,-1000.0,0.00016521,2]
[400236180,1767210641981,-1000.0,0.00016521,2]
[400236182,1767210641991,-1000.0,0.00016521,2]
[400236184,1767210642000,-1000.0,0.00016521,2]
[400236186,1767210642010,-1000.0,0.00016521,2]
[400236188,1767210642020,-1000.0,0.00016521,2]
[400236190,1767210642029,-179.34104752,0.00016521,2]
[400236192,1767210642039,-1000.0,0.00016521,2]
[400236194,1767210642050,-1000.0,0.00016521,2]
[400236196,1767210642059,-1000.0,0.00016521,2]
[400236198,1767210642070,-1000.0,0.00016521,2]
[400236200,1767210642079,-1000.0,0.00016521,2]
[400236203,1767210642093,-978.21509642,0.00016521,2]
[400236205,1767210642103,-1000.0,0.00016521,2]
[400236207,1767210642113,-1000.0,0.00016521,2]
[400236209,1767210642123,-295.1,0.00016521,2]
[400236211,1767210642133,-500.0,0.00016603,2]
[400236213,1767210642142,-269.0721526,0.0001666,2]
[400236215,1767210642152,-831.0,0.0001668,2]
[400236217,1767210642163,-5894.8,0.00016712,2]
[400236219,1767210642173,-164.83,0.00016712,2]
[400236221,1767210642182,-462.13,0.00016766,2]
[400236223,1767210642192,-295.1,0.00016795,2]
[400236225,1767210642202,-1202.68941,0.0001683,2]
[400236227,1767210642211,-1202.68942,0.0001683,2]
[400236229,1767210642221,-1202.68942,0.0001683,2]
[400236231,1767210642233,-1202.68941,0.0001685,2]
[400236233,1767210642243,-224.0,0.00016876,2]
[400236235,1767210642252,-1202.68942,0.0001688,2]
[400236237,1767210642263,-169.15912979,0.000169,2]
[400236239,1767210642276,-7197.6755,0.000169,2]
[400236241,1767210642287,-519.47955496,0.000169,2]
[400236243,1767210642297,-975.38042216,0.000169,2]
[400236246,1767210642308,-189.09279759,0.000169,2]
[400236248,1767210642318,-4526.0,0.000169,2]
[400236250,1767210642328,-1202.68941,0.0001691,2]
[400236252,1767210642338,-1202.68942,0.0001693,2]
[400236254,1767210642348,-150.0,0.00016973,2]
[400236256,1767210642358,-5894.8,0.00016986,2]
[400236258,1767210642368,-28771.06536804,0.00016986,2]
[400236260,1767210642381,-14709.21463196,0.00016986,2]
[400236262,1767210642390,-169.70178779,0.00016986,2]
[400236264,1767210642400,-618.6107663,0.00016988,2]
[400236266,1767210642410,-235.84568341,0.0001699,2]
[400236268,1767210642419,-235.84568341,0.0001699,2]
[400236270,1767210642428,-235.84568341,0.0001699,2]
[400236272,1767210642438,-151.0,0.00016997,2]
[400236274,1767210642448,-300.0,0.00016999,2]
[400236276,1767210642457,-300.0,0.00016999,2]
[400236278,1767210642467,-300.0,0.00016999,2]
[400236280,1767210642476,-300.0,0.00016999,2]
[400236282,1767210642486,-300.0,0.00016999,2]
[400236284,1767210642496,-500.0,0.00016999,2]
[400236286,1767210642506,-394.25410514,0.00016999,2]
[400236288,1767210642515,-150.0,0.00017,2]
[400236291,1767210642525,-150.0,0.00017,2]
[400236293,1767210642535,-2558181.79356765,0.00017,2]
[400236513,1767210644646,-4812.0,0.00014794,2]
[400236515,1767210644656,-151.0,0.00015954,2]
[400236517,1767210644665,-151.0,0.00015954,2]
[400236519,1767210644674,-298203.45380859,0.00017,2]
[400236521,1767210644686,-178038.97269098,0.00017,2]
[400237020,1767210649528,1474.5789,0.00010799,2]
[400237670,1767210661263,500.0,0.00043215,120]
[400237671,1767210681148,500.0,0.00010798,2]
[400237672,1767210682060,500.0,0.00010798,2]
[400237673,1767210682400,500.0,0.00010798,2]
[400237675,1767210686794,500.0,0.00010798,2]
[400237676,1767210688659,500.0,0.00010798,2]
[400237677,1767210688734,481.04041227,0.00010798,2]
[400237678,1767210728052,200.0,0.00043215,120]
[400237679,1767210744864,200.0,0.00043215,30]
[400237680,1767210762973,7018.96958773,0.00010799,2]
[400237681,1767210762999,10000.01,0.00010799,2]
[400237682,1767210763025,10000.01,0.00010799,2]
[400237683,1767210763050,10000.01,0.00010799,2]
[400237684,1767210763075,10000.01,0.00010799,2]
[400237685,1767210763100,10000.01,0.00010799,2]
[400237686,1767210763124,10000.01,0.00010799,2]
[400237687,1767210763152,10000.01,0.00010799,2]
[400237688,1767210763176,10000.01,0.00010799,2]
[400237689,1767210763203,10000.01,0.00010799,2]
[400237690,1767210763826,-820.62990924,0.00010799,2]
[400237691,1767210765973,-308.87960017,0.00010799,2]
[400237692,1767210767411,-200.0,0.00010799,2]
[400237693,1767210771081,-207.4,0.00010799,2]
[400237694,1767210776241,-259.37697533,0.00010799,2]
[400237695,1767210779688,-643.83658253,0.00010799,2]
[400237696,1767210783867,-207.42834574,0.00010799,2]
[400237697,1767210787456,-517.98211067,0.00010799,2]
[400237698,1767210790234,-211.84096424,0.00010799,2]
[400237699,1767210791662,1200.0,0.00010798,2]
[400237700,1767210791769,-246.82755494,0.00010799,2]
[400237701,1767210793786,-166.93819676,0.00010799,2]
[400237702,1767210795446,-299.3087587,0.00010799,2]
[400237703,1767210797616,-710.566,0.00010799,2]
[400237704,1767210800246,-218.45570258,0.00010799,2]
[400237705,1767210803266,-281.54429759,0.00010799,2]
[400237706,1767210805280,-246.9263342,0.00010799,2]
[400237707,1767210807861,-249.82513255,0.00010799,2]
[400237708,1767210809884,-292.19829255,0.00010799,2]
[400237709,1767210812650,-333.9659742,0.00010799,2]
[400237710,1767210814720,-233.2957982,0.00010799,2]
[400237711,1767210818492,-166.66,0.00010799,2]
[400237712,1767210821889,-271.01379213,0.00010799,2]
[400237713,1767210823661,409.90880895,0.00010699,2]
[400237714,1767210823900,-641.49620787,0.00010799,2]
[400237715,1767210826584,-302.0,0.00010799,2]
[400237716,1767210828101,-393.95311366,0.00010799,2]
[400237717,1767210831715,-329.67079238,0.00010799,2]
[400237718,1767210841583,150.0,0.00010798,2]
[400237719,1767210843418,248.0,0.00010798,2]
[400237720,1767210873567,263.78521115,0.00010798,2]
[400237721,1767210873640,259.02795204,0.00010798,2]
[400237722,1767210873683,500.0,0.00010798,2]
[400237723,1767210873722,240.83795327,0.00010798,2]
[400237724,1767210874322,500.0,0.00010798,2]
[400237725,1767210874374,251.45957307,0.00010798,2]
[400237726,1767210876270,340.80208677,0.00010798,2]
[400237727,1767210876346,500.0,0.00010798,2]
[400237728,1767210876387,445.89134248,0.00010798,2]
[400237729,1767210876456,500.0,0.00010798,2]
[400237730,1767210876509,500.0,0.00010798,2]
[400237731,1767210876571,500.0,0.00010798,2]
[400237732,1767210876628,500.0,0.00010798,2]
[400237733,1767210876697,500.0,0.00010798,2]
[400237734,1767210876755,500.0,0.00010798,2]
[400237735,1767210876806,500.0,0.00010798,2]
[400237736,1767210876857,500.0,0.00010798,2]
[400237737,1767210876907,500.0,0.00010798,2]
[400237738,1767210876952,190.29707227,0.00010798,2]
[400237739,1767210876978,309.70292773,0.00010798,2]
[400237740,1767210877036,500.0,0.00010798,2]
[400237741,1767210877094,500.0,0.00010798,2]
[400237742,1767210877141,500.0,0.00010798,2]
[400237743,1767210877193,500.0,0.00010798,2]
[400237744,1767210877239,546.92680682,0.00010798,2]
[400237745,1767210877289,500.0,0.00010798,2]
[400237746,1767210877339,500.0,0.00010798,2]
[400237747,1767210877389,500.0,0.00010798,2]
[400237748,1767210877436,500.0,0.00010798,2]
[400237749,1767210877482,500.0,0.00010798,2]
[400237750,1767210877530,500.0,0.00010798,2]
[400237751,1767210877575,500.0,0.00010798,2]
[400237752,1767210877621,500.0,0.00010798,2]
[400237753,1767210877683,500.0,0.00010798,2]
[400237754,1767210877722,500.0,0.00010798,2]
[400237755,1767210877761,500.0,0.00010798,2]
[400237756,1767210877801,500.0,0.00010798,2]
[400237757,1767210877846,500.0,0.00010798,2]
[400237758,1767210877886,500.0,0.00010798,2]
[400237759,1767210888720,143.38026545,0.00010798,2]
[400237760,1767210888744,41.26938235,0.00010798,2]
[400237761,1767210896538,500.0,0.00010798,2]
[400237762,1767210896580,500.0,0.00010699,2]
[400237763,1767210896840,500.0,0.00010798,2]
[400237764,1767210897149,500.0,0.00010798,2]
[400237765,1767210901174,300.0,0.00010798,2]
[400237766,1767210901411,1200.0,0.00010798,2]